Cogmind - Beta 13 @@@ ROGUE MODE // 2024.03.03 @ 15:45:45 Player: Baxter Result: Destroyed by as-72807 with Assembled Heavy Rifle Performance ------------- Evolutions (0) 0 Regions Visited (2) 400 Robots Destroyed (24) 120 Value Destroyed (504) 504 Prototype IDs (0) 0 Alien Tech Used (0) 0 Bonus (0) 0 TOTAL SCORE: 1024 Bonus ------- None Cogmind --------- Core Integrity 0/250 Matter 274/300 Energy 100/100 System Corruption 0% Temperature Cool (0) Movement Rolling (130) Ox2 Location -10/Mines Parts ------- > --- POWER (1) -------- (None) > --- PROPULSION (2) --- Compact Wheel > --- UTILITY (2) ------ High-capacity Storage Unit Signal Interpreter > --- WEAPON (2) ------- Medium Laser Grenade Launcher > --- INVENTORY (20) --- Light Ion Engine Light Ion Engine Wheel Wheel Compact Wheel Compact Wheel Medium Storage Unit Large Matter Pod (150) High-capacity Matter Pod (75) Sensor Array Sensor Array Improved Terrain Scanner Seismic Detector Light Assault Rifle Mining Laser Peak State ------------ > --- POWER ------------ Light Ion Engine > --- PROPULSION ------- Light Treads Wheel > --- UTILITY ---------- Small Storage Unit Seismic Detector > --- WEAPON ----------- EM Pulse Gun Medium Laser > --- INVENTORY -------- Light Ion Engine Light Ion Engine Light Treads Large Matter Pod Signal Interpreter Improved Terrain Scanner Grenade Launcher Mining Laser [Rating: 8] Favorites ----------- Power Light Ion Engine Engine Light Ion Engine Propulsion Light Treads Treads Light Treads Wheel Wheel Utility Small Storage Unit Device Seismic Detector Storage Small Storage Unit Processor Signal Interpreter Weapon Medium Laser Energy Gun Medium Laser Ballistic Gun Light Assault Rifle Launcher Grenade Launcher Special Weapon Mining Laser Build | -11 -10 -10 ------- Run | Yrd Mat Min Slots Evolved . | . . . Power . | . . . Propulsion . | . . . Utility . | . . . Weapon . | . . . Parts Attached 20 | 6 13 1 Power 2 | 1 1 . Engine 2 | 1 1 . Core . | . . . Reactor . | . . . Propulsion 5 | 1 4 . Treads 2 | . 2 . Leg . | . . . Wheel 3 | 1 2 . Hover . | . . . Flight . | . . . Utility 4 | 2 2 . Device 1 | 1 . . Storage 2 | 1 1 . Processor 1 | . 1 . Hackware . | . . . Protection . | . . . Artifact . | . . . Weapon 9 | 2 6 1 Energy Gun 5 | 2 3 . Energy Cannon . | . . . Ballistic Gun 2 | . 2 . Ballistic Cannon . | . . . Launcher 1 | . . 1 Special Weapon 1 | . 1 . Impact Weapon . | . . . Slashing Weapon . | . . . Piercing Weapon . | . . . Special Melee Weapon . | . . . Unidentified Prototypes . | . . . Parts Lost 5 | . 4 1 Power 1 | . 1 . Propulsion 1 | . . 1 Utility . | . . . Weapon 3 | . 3 . Highest Loss Streak 1 | . 1 1 To Critical Strikes . | . . . Average Slot Usage (%) 89 | . 89 85 Engine 8 | . 9 . Treads 13 | . 13 14 Wheel 12 | . 12 14 Device 2 | . 3 . Storage 14 | . 14 14 Processor 11 | . 10 14 Energy Gun 17 | . 17 14 Ballistic Gun 7 | . 7 14 Naked Turns . | . . . Heaviest Build 46 | 13 46 45 Greatest Support 20 | 10 20 16 Greatest Overweight (x) 2 | 1 2 2 Average Overweight (x) . | . . 2 Largest Inventory Capacity 20 | 8 20 20 Average Capacity 10 | 7 10 20 Most Carried 15 | 8 15 15 Average Carried 8 | 5 8 15 Final Capacity 20 | 8 20 20 Final Carried 15 | 8 15 15 Class Distribution -------------------- 100% | Mutant Dominant Class ---------------- Mutant | -10/Materials Mutant | -10/Mines Resources | -11 -10 -10 ----------- Run | Yrd Mat Min Matter Collected 637 | 260 350 27 Remotely . | . . . Salvage Created 863 | 114 671 78 Parts 43 | 5 35 3 Haulers Intercepted 2 | . 2 . Recyclers Shooed . | . . . Parts Field Recycled . | . . . Retrieved Matter . | . . . Parts Self-Destructed . | . . . Prevented . | . . . Kills | -11 -10 -10 ------- Run | Yrd Mat Min Combat Hostiles Destroyed 16 | . 16 . Guns 13 | . 13 . Cannons 1 | . 1 . AOE 1 | . 1 . Classes Destroyed 7 | 2 5 . Tunneler 1 | 1 . . Hauler 2 | . 2 . Recycler 1 | 1 . . Operator 1 | . 1 . Watcher 3 | . 3 . Swarmer 6 | . 6 . Grunt 10 | . 10 . Best Kill Streak 3 | 1 3 . Combat Bots Only 3 | . 3 . Max Kills in Single Turn 1 | 1 1 . Gunslinging . | . . . Exploded 1 | . 1 . Melee . | . . . Uniques/NPCs Destroyed . | . . . Combat | -11 -10 -10 -------- Run | Yrd Mat Min Hostile Shots Fired 98 | . 88 10 Missed 16 | . 15 1 Damage Taken 950 | . 788 162 Core 256 | . 193 63 Absorbed by Shields . | . . . Core Remaining (%) 100 | 100 . . Volleys Fired 93 | 8 79 6 Largest 2 | 2 2 2 Hottest 150 | 90 150 70 Shots Fired 143 | 10 123 10 Gun 139 | 10 121 8 Cannon . | . . . Launcher 2 | . . 2 Special 2 | . 2 . Kinetic 43 | . 39 4 Thermal 75 | 8 63 4 Explosive 2 | . . 2 Electromagnetic 23 | 2 21 . Robot Hit Streak 13 | 6 13 6 Robot Miss Streak 3 | 1 3 2 Penetration Max . | . . . Secondary Targets . | . . . Shots Hit Robots 96 | 8 84 4 Core Hits 44 | 3 35 6 Critical Kills . | . . . Critical Parts Destroyed . | . . . Critical Strikes 7 | 1 6 . Burn 6 | 1 5 . Corrupt 1 | . 1 . Melee Attacks . | . . . Impact . | . . . Slashing . | . . . Piercing . | . . . Sneak Attacks . | . . . Combat Hostiles . | . . . Follow-up Attacks . | . . . Damage Inflicted 1379 | 101 1097 181 Guns 1106 | 101 960 45 Cannons . | . . . Explosions 247 | . 111 136 Melee . | . . . Ramming . | . . . Kinetic 201 | . 192 9 Thermal 802 | 88 678 36 Explosive 136 | . . 136 Electromagnetic 240 | 13 227 . Impact . | . . . Slashing . | . . . Piercing . | . . . Highest Corruption . | . . . Average Corruption . | . . . Corruption Purged . | . . . Corruption Blocked . | . . . Overload Shots . | . . . Overflow Damage . | . . . Projectiles . | . . . Explosions . | . . . Melee . | . . . Knockbacks . | . . . Impact . | . . . Kinetic . | . . . Secondary . | . . . Self-Inflicted Damage 57 | . 57 . Shots 2 | . 2 . Rammed . | . . . Targets Rammed . | . . . Kicked . | . . . Crushed . | . . . Highest Temperature 256 | 60 256 20 Average Temperature 54 | 32 57 15 Received Heat Transfer 261 | . 261 . Siege Activations . | . . . Robots Corrupted . | . . . Combat Hostiles . | . . . Parts Fried 1 | . 1 . Impact Corruptions . | . . . Robots Melted 1 | . 1 . Combat Hostiles 1 | . 1 . Parts Melted 6 | . 6 . Heat Transferred 2555 | 333 2111 111 Parts Sabotaged . | . . . Parts Stolen . | . . . Parts Stripped . | . . . Power Chain Reactions 2 | . 2 . Alert | -11 -10 -10 ------- Run | Yrd Mat Min Peak Influence 288 | 10 288 121 Initial 90 | . 6 90 Average 120 | 3 129 99 Maximum Alert Level 1 | . 1 . Low Security (%) 72 | 100 70 100 Level 1 27 | . 29 . Level 2 . | . . . Level 3 . | . . . Level 4 . | . . . Level 5 . | . . . High Security . | . . . Max Security . | . . . Squads Dispatched 4 | . 4 . Investigation 3 | . 3 . Extermination . | . . . Reinforcement 1 | . 1 . Assault . | . . . Garrison . | . . . Intercept . | . . . Searches Triggered . | . . . Construction Impeded . | . . . Haulers Reinforced . | . . . Active Scanning Responses . | . . . Cargo Convoy Interrupts . | . . . Stealth | -11 -10 -10 --------- Run | Yrd Mat Min Distress Signals 1 | . 1 . Communications Jammed . | . . . Distress Signals . | . . . Times Spotted 34 | . 23 11 Peak Tracking Total 12 | . 4 12 Tactical Retreats . | . . . Traps | -11 -10 -10 ------- Run | Yrd Mat Min Traps Triggered 3 | . 3 . Indirectly . | . . . Trap Hack Attempts . | . . . Triggered . | . . . Disarmed . | . . . Reprogrammed . | . . . Reused . | . . . Traps Extracted . | . . . Installed . | . . . Triggered . | . . . Machines | -11 -10 -10 ---------- Run | Yrd Mat Min Machines Disabled 1 | . 1 . Max in Single Turn 1 | . 1 . Machines Repaired . | . . . Machines Dismantled . | . . . Machines Sabotaged . | . . . Overloaded Fab Kills . | . . . Hacking | -11 -10 -10 --------- Run | Yrd Mat Min Machines Accessed 5 | . 5 . Terminals 5 | . 5 . Fabricators . | . . . Repair Stations . | . . . Recycling Units . | . . . Scanalyzers . | . . . Garrison Access . | . . . Total Hacks 9 | . 9 . Successful 7 | . 7 . Failed 1 | . 1 . Catastrophic . | . . . Database Lockouts 1 | . 1 . Manual 11 | . 11 . Terminals 9 | . 9 . Fabricators . | . . . Repair Stations . | . . . Recycling Units . | . . . Scanalyzers . | . . . Garrison Access . | . . . Terminal Hacks 2 | . 2 . Robot Analysis 1 | . 1 . Recall Investigation 1 | . 1 . Fabricator Hacks . | . . . Repair Station Hacks . | . . . Recycling Unit Hacks . | . . . Scanalyzer . | . . . Garrison Access Hacks . | . . . Unauthorized Hacks 5 | . 5 . Terminals 5 | . 5 . Botnet 5 | . 5 . Fabricators . | . . . Repair Stations . | . . . Recycling Units . | . . . Scanalyzers . | . . . Garrison Access . | . . . Data Cores Recovered . | . . . Used . | . . . Hacking Detections 3 | . 3 . Full Trace Events 1 | . 1 . Feedback Events . | . . . Feedback Blocked . | . . . Robot Schematics Acquired . | . . . Robots Built . | . . . Authchips . | . . . Time . | . . . Total Robot Build Rating . | . . . Part Schematics Acquired . | . . . Parts Built . | . . . Authchips . | . . . Time . | . . . Total Part Build Rating . | . . . Parts Repaired . | . . . Time . | . . . Parts Recycled . | . . . Recycled Matter . | . . . Retrieved Matter . | . . . Retrieved Components . | . . . Parts Scanalyzed . | . . . Part Schematics Acquired . | . . . Parts Damaged . | . . . Bothacking | -11 -10 -10 ------------ Run | Yrd Mat Min Used RIF Installer . | . . . Robots Hacked . | . . . Non-combat . | . . . Combat . | . . . Robot Hacks Applied . | . . . Relay Couplers Released . | . . . Fabnet Peak Effective % . | . . . Robots Rewired . | . . . Allies Hacked . | . . . Hacks Repelled . | . . . Allies | -11 -10 -10 -------- Run | Yrd Mat Min Total Allies . | . . . Largest Group . | . . . Highest-Rated Group . | . . . Highest-Rated Ally . | . . . Total Orders . | . . . Ally Attacks . | . . . Total Damage . | . . . Kills . | . . . Allies Corrupted . | . . . Allies Melted . | . . . Intel | -11 -10 -10 ------- Run | Yrd Mat Min Robot Analysis Total 1 | . 1 . Derelict Logs Recovered . | . . . Drone Launches . | . . . Drone Recoveries . | . . . Exploration | -11 -10 -10 ------------- Run | Yrd Mat Min Turns Passed 1318 | 83 1196 39 Spaces Moved 816 | 57 742 17 Core 2 | 2 . . Treads 251 | . 251 . Legs . | . . . Wheels 563 | 55 491 17 Hover . | . . . Flight . | . . . Fastest Speed 50 | 50 80 130 Average Speed 120 | 81 123 130 Slowest Speed 160 | 95 160 130 Overloaded Moves . | . . . Propulsion Burnouts . | . . . Robots Hopped . | . . . Cave-ins Triggered . | . . . Exploration Rate (%) 35 | 3 97 7 Regions Visited 2 Branch Regions 1 Pre-discovered Areas . | . . . Known Exits Taken 1 | . 1 . Unknown Exits Taken 1 | 1 . . Scrap Searched . | . . . Spaces Dug . | . . . Terrain Destroyed 23 | . 6 17 Melee . | . . . Projectile 1 | . 1 . AOE 22 | . 5 17 Terrain Rammed . | . . . Walls Destroyed . | . . . Machines Disabled . | . . . Actions | -11 -10 -10 --------- Run | Yrd Mat Min Total 1006 | 81 901 24 Wait 51 | . 51 . Move 814 | 56 741 17 Hop . | . . . Pick Up 22 | 10 12 . Fast Attach 10 | 5 5 . Attach 5 | 1 4 . Detach . | . . . Swap 5 | . 4 1 Drop 6 | 1 5 . Fire 93 | 8 79 6 Melee . | . . . Ram . | . . . Kick . | . . . Crush . | . . . Escape Stasis . | . . . Rewire . | . . . Trap . | . . . Miscellaneous . | . . . Route ------- -11/Scrapyard -10/Materials (discovered 5 exits: *Mat x3 / *Min x2) -10/Mines History --------- Turn | Location | Event 17 | -11/Scrapyard | Discovered new exit (range 16) 84 | -11/Scrapyard | Entered Materials 318 | -10/Materials | Build established: Mutant 457 | -10/Materials | Discovered new exit (range 14) 541 | -10/Materials | Identified exit to Materials 578 | -10/Materials | Central database locked down 639 | -10/Materials | Discovered new exit (range 16) 647 | -10/Materials | Discovered new exit (range 12) 658 | -10/Materials | Discovered exit to Materials (range 16) 658 | -10/Materials | Identified exit to Mines 715 | -10/Materials | Core integrity fell below 50% 1080 | -10/Materials | Discovered exit to Materials (range 13) 1280 | -10/Materials | Entered Mines 1304 | -10/Mines | Assembled infested the area 1316 | -10/Mines | Core integrity fell below 20% 1319 | -10/Mines | Destroyed by as-72807 with Assembled Heavy Rifle Last Messages --------------- 01241_ Weight Redist. System melted. 01241_ A-02 Transporter destroyed. 01245_ Acquired Med. Storage Unit. 01246_ K-01 Serf collects debris. 01248_ Acquired Sensor Array. 01249_ K-01 Serf collects debris. 01261_ K-01 Serf cleans the Material Compactor. 01262_ K-01 Serf cleans the Fusion Modulator. LOCATION=MINES GOAL=ESCAPE Something is scanning the area. 01293_ U-05 Engineer destroyed. 01296_ Destroyed Wheel. 01296_ K-01 Serf destroyed. 01303_ Acquired 27 matter. 01304_ ALERT: Infestation in the mines, dispatching Demolisher response squad. 01304_ K-01 Serf destroyed. 01316_ HV Slug penetrates Wall. 01317_ Lgt. Treads destroyed. Map ----- +----------------------------------------------------+ | ????????????????????????????????????????? | | ????????????????????????????????????????? | | ????????????????????????????????????????? | | ????????????????????????????????????????? | | ????????????????????????????????????????? | | ??????????????????????? ???????????????? | | ??????????????????????? ???????????????? | | ??????????????????????? ???????????????? | | ???????????????????????$ ???????????????? | | ??????????????????????# ???????????????? | | ??????????????????????# ???????????????? | | ??????????????????????;a ???????????????? | | ??????????????????????# ???????????????? | | ??????????????????????# #??????????????? | | ?????????????????????##aaa??????????????? | | ????????????????????? aa ??????????????? | | ?????????????????????# #?????????????? | | ????????????????????## #?????????????? | | ???????????????????## ##????????????? | | ???????????????????# ! #????????????? | | ???????????????# #### ! #????????????? | | ???????????????# %#????????????? | | ???????????????####### a!#????????????? | | ??????????????????????##a ##????????????? | | ???????????????????????# a#?????????????? | | ???????????????????????# @###???????????? | | ??????????????????????## #######?????? | | ??????????????????????# #?????? | | ??????????????????????# #????? | | ??????????????????????## ### #???? | | ???????????????????????#####??? #???? | | ???????????????????????????????? ##???? | | ??????????????????????????????????##????? | | ????????????????????????????????????????? | | | | | | | | | | | | | | | | | | | | | | | | | | | | | | | | | +----------------------------------------------------+ Best States ------------- Heat Dissipation 25 Energy Generation 10 Energy Capacity 125 Matter Stores 300 Matter Capacity 300 Sight Range 16 Terrain Scan Density 10 Evasion (%) 44 Recoil Reduction 1 Item Schematics ----------------- None Robot Schematics ------------------ None Fabricated ------------ Nothing Alien Tech Used ----------------- None Achievements -------------- It's Just You Challenges ------------ None Game ------ Seed FusionChainSegregator Manual? 0 Play Time 00:13:04 Cumulative 16.0 hours Start 2024.03.03 @ 15:33:05 End 2024.03.03 @ 15:45:45 Sessions 1 Manual Loads 0 Difficulty Rogue Special Mode None Game No. 15 Rogue 15 Adventurer 0 Explorer 0 Win Type - Total 0 Types 0/0/0/0/0/0/0/0/0 Lore% 20 Gallery% 18 Achievement% 19 Wizard Run 0 Options --------- Layout 1 ASCII 0 Keyboard 0 Movement Numpad Keybinds 0 Fullscreen 2 Font 24/Smallcaps Map View 50x35 Zoom Use 0% Tactical HUD 1 Map Filters NONE Filters NONE Steam 0 RUN: b4f4409c-ee55-4e5c-8cd0-5a714eba41a5